fUSD/lending_fUSD_20250124
["ID","MTS","AMOUNT","RATE_DAILY","PERIOD"]
[350228763,1737714638987,-903.07,0.00018479,2]
[350228764,1737714638997,-1082.15,0.00018479,2]
[350228765,1737714639007,-1544.28,0.00018479,2]
[350228766,1737714639016,-2739.21,0.00018479,2]
[350228767,1737714639026,-500.0,0.00018479,2]
[350228768,1737714639035,-1287.25,0.00018479,2]
[350228769,1737714639044,-1204.6,0.00018479,2]
[350228770,1737714639054,-2983.49,0.00018479,2]
[350228771,1737714639063,-500.0,0.00018479,2]
[350228772,1737714639072,-500.0,0.00018479,2]
[350228773,1737714639082,-673.77,0.00018479,2]
[350228774,1737714639092,-500.0,0.00018479,2]
[350228775,1737714639102,-983.62,0.00018479,2]
[350228776,1737714639111,-1474.17,0.00018479,2]
[350228777,1737714639121,-574.13,0.00018479,2]
[350228778,1737714639130,-1318.3,0.00018479,2]
[350228779,1737714639139,-2565.04,0.00018479,2]
[350228780,1737714639148,-2412.96,0.00018479,2]
[350228781,1737714639158,-4586.98,0.00018479,2]
[350228782,1737714639167,-1885.17,0.00018479,2]
[350228783,1737714639177,-1278.71,0.00018479,2]
[350228784,1737714639187,-1031.18,0.00018479,2]
[350228785,1737714639197,-500.0,0.00018479,2]
[350228786,1737714639206,-3826.06,0.00018479,2]
[350228787,1737714639215,-500.0,0.00018479,2]
[350228788,1737714639225,-878.81,0.00018479,2]
[350228789,1737714639234,-1114.84,0.00018479,2]
[350228790,1737714639243,-500.0,0.00018479,2]
[350228791,1737714639253,-538.95,0.00018479,2]
[350228792,1737714639265,-500.0,0.00018479,2]
[350228793,1737714639275,-500.0,0.00018479,2]
[350228794,1737714639288,-515.73,0.00018479,2]
[350228795,1737714639301,-1411.91,0.00018479,2]
[350228796,1737714639314,-1477.79,0.00018479,2]
[350228797,1737714639323,-500.0,0.00018479,2]
[350228798,1737714639333,-3385.52,0.00018479,2]
[350228799,1737714639343,-603.76,0.00018479,2]
[350228800,1737714639353,-1610.45,0.00018479,2]
[350228801,1737714639364,-1161129.3243102,0.0001848,2]
[350228802,1737714639665,-5255.92241343,0.0001848,2]
[350228804,1737714639691,-14947.31676804,0.0001848,2]
[350228806,1737714639703,-40807.93290963,0.0001848,2]
[350228807,1737714642340,-1641.19999999,0.00018395,2]
[350228808,1737714642551,-1515.6840353,0.00018395,2]
[350228809,1737714642561,-159.47184463,0.00018478,2]
[350228810,1737714642572,-497.99815537,0.00018478,2]
[350228811,1737714642586,-152.13184463,0.00018478,2]
[350228847,1737714642936,-347.86815537,0.00018478,2]
[350228849,1737714642946,-186.16111963,0.0001848,2]
[350228852,1737714642958,-422.7577225,0.0001848,2]
[350228854,1737714642970,-705.052,0.0001848,2]
[350228856,1737714642981,-485.5958734,0.0001848,2]
[350228858,1737714642992,-557.085015,0.0001848,2]
[350228860,1737714643003,-201945.36942727,0.0001848,2]
[350228870,1737714643095,-1344.4556772,0.0001848,2]
[350228873,1737714643108,-4658.54939738,0.0001848,2]
[350228875,1737714643121,-1000.0,0.0001848,2]
[350228897,1737714645716,-455.32776163,0.00018478,2]
[350228898,1737714645824,-44.67223837,0.00018478,2]
[350228899,1737714645834,-500.0,0.00018478,2]
[350228900,1737714645844,-934.199843,0.00018479,2]
[350228901,1737714645854,-462.82459028,0.00018479,2]
[350228902,1737714645866,-1781.71540972,0.00018479,2]
[350228903,1737714645878,-16218.49275415,0.0001848,2]
[350228904,1737714645890,-865.22123301,0.0001848,2]
[350228905,1737714646039,-262.91500001,0.0001848,2]
[350228909,1737715478988,150.0,0.00014,2]
[350228911,1737715621345,2000.0,0.00020211,60]
[350228924,1737715831934,-262.42,0.00015509,2]
[350228926,1737715831944,-600.0,0.00016972,2]
[350228928,1737715831953,-713.78,0.00016972,2]
[350228938,1737715832039,-986.22,0.00016972,2]
[350228940,1737715832048,-10000.0,0.00017,5]
[350228942,1737715832057,-1000.0,0.00017399,2]
[350228944,1737715832067,-250.0,0.00017613,2]
[350228945,1737715832077,-262.42,0.00017773,2]
[350228946,1737715832086,-10000.0,0.00018,2]
[350228947,1737715832095,-14707.03940195,0.00018,2]
[350228948,1737715832110,-13466.98573469,0.00018,2]
[350228949,1737715832119,-444.115,0.00018042,2]
[350228950,1737715832129,-600.0,0.00018068,2]
[350228951,1737715832138,-1700.0,0.00018068,2]
[350228952,1737715832147,-169.76,0.00018082,2]
[350228953,1737715832156,-170.0,0.000183,2]
[350228954,1737715832166,-3000.0,0.000183,2]
[350228955,1737715832175,-500.0,0.00018332,2]
[350228956,1737715832184,-717.82601239,0.00018377,2]
[350228957,1737715832193,-157.62264216,0.00018377,2]
[350228958,1737715832202,-5000.0,0.00018378,2]
[350228959,1737715832211,-4143.9329,0.00018378,2]
[350228960,1737715832220,-717.82601231,0.0001838,2]
[350228961,1737715832229,-717.82601231,0.00018382,2]
[350228962,1737715832238,-717.82601231,0.00018385,2]
[350228963,1737715832247,-717.82601231,0.00018387,2]
[350228964,1737715832256,-157.62264214,0.00018389,2]
[350228965,1737715832265,-717.82601231,0.0001839,2]
[350228966,1737715832275,-717.82601231,0.00018392,2]
[350228967,1737715832284,-717.82601231,0.00018395,2]
[350228968,1737715832293,-717.82601231,0.00018397,2]
[350228969,1737715832302,-249.42,0.00018398,2]
[350228970,1737715832311,-173.3783178,0.000184,2]
[350228971,1737715832321,-16122.74853641,0.000184,2]
[350228975,1737715832495,-674.304,0.000184,2]
[350228976,1737715832507,-703.13555873,0.000184,2]
[350228977,1737715832518,-689.379689,0.000184,2]
[350229026,1737715837834,-274.57,0.00017407,2]
[350229028,1737715837845,-2723.1153601,0.000184,2]
[350229030,1737715837939,-19828.31685576,0.000184,2]
[350229031,1737715837950,-214.90228236,0.000184,2]
[350229032,1737715837959,-717.82601231,0.000184,2]
[350229033,1737715837970,-58513.17816263,0.000184,2]
[350229034,1737715837993,-12235.47697257,0.000184,2]
[350229035,1737715838005,-6636.17396004,0.000184,2]
[350229036,1737715838016,-884.08631375,0.000184,2]
[350229037,1737715838025,-261.34591873,0.000184,2]
[350229038,1737715838034,-747.2465794,0.000184,2]
[350229039,1737715838043,-157.62264214,0.000184,2]
[350229040,1737715838052,-860.92012052,0.00018413,2]
[350229041,1737715838061,-246.18,0.0001847,2]
[350229042,1737715838070,-500.0,0.00018476,2]
[350229043,1737715838079,-810.86,0.00018476,2]
[350229044,1737715838088,-1039.2,0.00018476,2]
[350229045,1737715838097,-650.91,0.00018476,2]
[350229046,1737715838106,-500.0,0.00018476,2]
[350229047,1737715838116,-500.0,0.00018476,2]
[350229048,1737715838126,-500.0,0.00018476,2]
[350229049,1737715838135,-500.0,0.00018476,2]
[350229050,1737715838146,-500.0,0.00018476,2]
[350229051,1737715838156,-502.26313891,0.00018477,2]
[350229052,1737715838165,-356.7040842,0.00018477,2]
[350229053,1737715838175,-500.0,0.00018477,2]
[350229054,1737715838191,-500.0,0.00018477,2]
[350229055,1737715838200,-500.0,0.00018477,2]
[350229056,1737715838209,-500.0,0.00018477,2]
[350229057,1737715838219,-500.0,0.00018477,2]
[350229058,1737715838227,-664.0,0.00018477,2]
[350229059,1737715838236,-500.0,0.00018477,2]
[350229060,1737715838245,-642.39,0.00018477,2]
[350229061,1737715838255,-500.0,0.00018477,2]
[350229063,1737715838269,-500.0,0.00018477,2]
[350229065,1737715838278,-500.0,0.00018477,2]
[350229067,1737715838287,-500.0,0.00018477,2]
[350229069,1737715838295,-500.0,0.00018477,2]
[350229071,1737715838304,-500.0,0.00018477,2]
[350229073,1737715838313,-500.0,0.00018477,2]
[350229075,1737715838324,-500.0,0.00018477,2]
[350229077,1737715838332,-549.27,0.00018477,2]
[350229078,1737715838341,-500.0,0.00018477,2]
[350229079,1737715838351,-500.0,0.00018477,2]
[350229081,1737715838360,-662.34,0.00018477,2]
[350229083,1737715838369,-799.71,0.00018477,2]
[350229085,1737715838378,-500.0,0.00018477,2]
[350229087,1737715838388,-500.0,0.00018477,2]
[350229089,1737715838397,-500.0,0.00018477,2]
[350229090,1737715838406,-500.0,0.00018477,2]
[350229091,1737715838415,-500.0,0.00018477,2]
[350229092,1737715838425,-500.0,0.00018477,2]
[350229093,1737715838434,-500.0,0.00018477,2]
[350229094,1737715838443,-500.0,0.00018477,2]
[350229095,1737715838454,-926.048235,0.00018477,2]
[350229096,1737715838464,-500.0,0.00018477,2]
[350229097,1737715838472,-500.0,0.00018477,2]
[350229098,1737715838482,-500.0,0.00018477,2]
[350229099,1737715838491,-500.0,0.00018477,2]
[350229100,1737715838500,-500.0,0.00018477,2]
[350229101,1737715838509,-500.0,0.00018477,2]
[350229102,1737715838519,-1268.755021,0.00018477,2]
[350229103,1737715838528,-500.0,0.00018477,2]
[350229104,1737715838537,-927.96,0.00018477,2]
[350229105,1737715838547,-528.43,0.00018477,2]
[350229106,1737715838557,-500.0,0.00018477,2]
[350229107,1737715838566,-510.30406824,0.00018477,2]
[350229108,1737715838575,-895.93,0.00018477,2]
[350229109,1737715838584,-500.0,0.00018477,2]
[350229110,1737715838594,-500.0,0.00018477,2]
[350229111,1737715838603,-1103.76,0.00018477,2]
[350229112,1737715838612,-500.0,0.00018477,2]
[350229113,1737715838622,-502.83809765,0.00018477,2]
[350229114,1737715838631,-274.81590794,0.00018477,2]
[350229115,1737715838640,-500.0,0.00018477,2]
[350229116,1737715838649,-500.0,0.00018477,2]
[350229117,1737715838658,-749.27,0.00018477,2]
[350229118,1737715838667,-500.0,0.00018477,2]
[350229119,1737715838675,-500.0,0.00018477,2]
[350229120,1737715838684,-500.0,0.00018477,2]
[350229121,1737715838693,-500.0,0.00018477,2]
[350229122,1737715838702,-504.18350713,0.00018477,2]
[350229123,1737715838712,-500.0,0.00018477,2]
[350229124,1737715838721,-1223.19,0.00018477,2]
[350229125,1737715838730,-500.0,0.00018477,2]
[350229126,1737715838739,-500.0,0.00018477,2]
[350229127,1737715838748,-719.98,0.00018477,2]
[350229128,1737715838757,-672.06,0.00018477,2]
[350229129,1737715838766,-500.0,0.00018477,2]
[350229130,1737715838775,-500.0,0.00018477,2]
[350229131,1737715838784,-500.0,0.00018477,2]
[350229132,1737715838793,-500.0,0.00018477,2]
[350229133,1737715838802,-500.0,0.00018477,2]
[350229134,1737715838812,-500.0,0.00018477,2]
[350229135,1737715838823,-749.97,0.00018477,2]
[350229136,1737715838833,-861.28,0.00018477,2]
[350229137,1737715838842,-500.0,0.00018477,2]
[350229138,1737715838852,-500.0,0.00018477,2]
[350229139,1737715838861,-500.0,0.00018477,2]
[350229140,1737715838870,-500.0,0.00018477,2]
[350229141,1737715838879,-500.0,0.00018477,2]
[350229142,1737715838888,-500.0,0.00018477,2]
[350229143,1737715838897,-394.97636539,0.00018477,2]
[350229144,1737715838928,-105.02363461,0.00018477,2]
[350229145,1737715838937,-500.0,0.00018477,2]
[350229146,1737715839084,-617.33,0.00018477,2]
[350229147,1737715839094,-655.87,0.00018477,2]
[350229148,1737715839103,-500.0,0.00018477,2]
[350229149,1737715839113,-501.7467634,0.00018477,2]
[350229150,1737715839122,-500.0,0.00018477,2]
[350229151,1737715839131,-702.92,0.00018477,2]
[350229152,1737715839140,-570.61,0.00018477,2]
[350229153,1737715839149,-500.0,0.00018477,2]
[350229154,1737715839158,-248.41018001,0.00018477,2]
[350229155,1737715839167,-500.0,0.00018477,2]
[350229156,1737715839176,-535.74705755,0.00018477,2]
[350229157,1737715839186,-500.0,0.00018477,2]
[350229158,1737715839195,-500.0,0.00018477,2]
[350229159,1737715839204,-500.0,0.00018477,2]
[350229160,1737715839214,-500.0,0.00018477,2]
[350229161,1737715839223,-500.0,0.00018477,2]
[350229162,1737715839233,-500.0,0.00018477,2]
[350229163,1737715839242,-500.0,0.00018477,2]
[350229164,1737715839252,-500.0,0.00018477,2]
[350229165,1737715839261,-500.0,0.00018477,2]
[350229166,1737715839271,-500.0,0.00018477,2]
[350229167,1737715839280,-513.76566683,0.00018477,2]
[350229168,1737715839289,-508.28078217,0.00018477,2]
[350229169,1737715839298,-500.0,0.00018477,2]
[350229170,1737715839308,-1517.51,0.00018477,2]
[350229171,1737715839317,-500.0,0.00018477,2]
[350229172,1737715839327,-500.0,0.00018477,2]
[350229173,1737715839336,-500.0,0.00018477,2]
[350229174,1737715839345,-506.07451776,0.00018477,2]
[350229175,1737715839354,-500.0,0.00018477,2]
[350229176,1737715839363,-500.0,0.00018477,2]
[350229177,1737715839372,-549.21,0.00018477,2]
[350229178,1737715839381,-500.0,0.00018477,2]
[350229179,1737715839391,-599.57569607,0.00018477,2]
[350229180,1737715839399,-578.6,0.00018477,2]
[350229181,1737715839409,-500.0,0.00018477,2]
[350229182,1737715839418,-500.0,0.00018477,2]
[350229183,1737715839427,-318.20174423,0.00018477,2]
[350229184,1737715839925,-181.79825577,0.00018477,2]
[350229185,1737715839934,-252.22174423,0.00018477,2]
[350229186,1737715840026,-247.77825577,0.00018477,2]
[350229187,1737715840036,-500.0,0.00018477,2]
[350229188,1737715840047,-2151.02,0.00018477,2]
[350229189,1737715840058,-500.0,0.00018477,2]
[350229190,1737715840068,-1593.56,0.00018477,2]
[350229191,1737715840077,-500.0,0.00018477,2]
[350229192,1737715840086,-500.0,0.00018477,2]
[350229193,1737715840095,-500.0,0.00018477,2]
[350229194,1737715840106,-500.0,0.00018477,2]
[350229195,1737715840116,-224.35711949,0.00018477,2]
[350229196,1737715840129,-275.64288051,0.00018477,2]
[350229197,1737715840139,-987.54,0.00018477,2]
[350229198,1737715840148,-500.0,0.00018477,2]
[350229199,1737715840158,-500.0,0.00018477,2]
[350229200,1737715840169,-500.0,0.00018477,2]
[350229201,1737715840180,-500.0,0.00018477,2]
[350229202,1737715840190,-500.0,0.00018477,2]
[350229203,1737715840200,-2747.92,0.00018477,2]
[350229204,1737715840209,-500.0,0.00018477,2]
[350229205,1737715840218,-500.0,0.00018477,2]
[350229206,1737715840227,-500.0,0.00018477,2]
[350229207,1737715840237,-2214.19,0.00018477,2]
[350229208,1737715840247,-500.0,0.00018477,2]
[350229209,1737715840257,-500.0,0.00018477,2]
[350229210,1737715840267,-500.0,0.00018477,2]
[350229211,1737715840278,-500.0,0.00018477,2]
[350229212,1737715840288,-642.28,0.00018477,2]
[350229213,1737715840300,-500.0,0.00018477,2]
[350229214,1737715840312,-500.0,0.00018477,2]
[350229215,1737715840322,-2000.4,0.00018477,2]
[350229216,1737715840331,-500.0,0.00018477,2]
[350229217,1737715840340,-500.0,0.00018477,2]
[350229218,1737715840350,-538.90454238,0.00018477,2]
[350229219,1737715840360,-500.0,0.00018477,2]
[350229220,1737715840369,-500.0,0.00018477,2]
[350229221,1737715840379,-687.61,0.00018477,2]
[350229222,1737715840388,-500.0,0.00018477,2]
[350229223,1737715840398,-439.94973773,0.00018477,2]
[350229224,1737715840407,-500.0,0.00018477,2]
[350229225,1737715840416,-721.71,0.00018477,2]
[350229226,1737715840426,-500.0,0.00018477,2]
[350229227,1737715840435,-503.82995657,0.00018477,2]
[350229228,1737715840444,-500.0,0.00018477,2]
[350229229,1737715840453,-500.0,0.00018477,2]
[350229230,1737715840463,-500.0,0.00018477,2]
[350229231,1737715840472,-500.0,0.00018477,2]
[350229232,1737715840481,-500.0,0.00018477,2]
[350229233,1737715840490,-200.0,0.00018477,2]
[350229235,1737715840500,-1157.73,0.00018477,2]
[350229237,1737715840509,-500.0,0.00018477,2]
[350229239,1737715840519,-500.0,0.00018477,2]
[350229240,1737715840528,-500.0,0.00018477,2]
[350229241,1737715840537,-500.0,0.00018477,2]
[350229242,1737715840546,-500.0,0.00018477,2]
[350229243,1737715840555,-500.0,0.00018477,2]
[350229244,1737715840564,-500.0,0.00018477,2]
[350229245,1737715840574,-500.0,0.00018477,2]
[350229246,1737715840583,-500.0,0.00018477,2]
[350229247,1737715840593,-5637.31,0.00018477,2]
[350229248,1737715840602,-500.0,0.00018477,2]
[350229249,1737715840613,-500.0,0.00018477,2]
[350229250,1737715840623,-500.0,0.00018477,2]
[350229251,1737715840632,-500.0,0.00018477,2]
[350229252,1737715840641,-1515.47,0.00018477,2]
[350229253,1737715840650,-1718.02,0.00018477,2]
[350229254,1737715840660,-500.0,0.00018477,2]
[350229255,1737715840669,-500.0,0.00018477,2]
[350229256,1737715840679,-500.0,0.00018477,2]
[350229257,1737715840688,-2219.92,0.00018477,2]
[350229258,1737715840697,-500.0,0.00018477,2]
[350229259,1737715840707,-500.0,0.00018477,2]
[350229260,1737715840716,-500.0,0.00018477,2]
[350229261,1737715840726,-2681.46,0.00018477,2]
[350229262,1737715840735,-500.0,0.00018477,2]
[350229263,1737715840744,-500.0,0.00018477,2]
[350229264,1737715840754,-500.0,0.00018477,2]
[350229265,1737715840763,-500.0,0.00018477,2]
[350229266,1737715840773,-500.0,0.00018477,2]
[350229267,1737715840782,-872.03,0.00018477,2]
[350229268,1737715840792,-500.0,0.00018477,2]
[350229269,1737715840802,-500.0,0.00018477,2]
[350229270,1737715840811,-3086.37,0.00018477,2]
[350229271,1737715840821,-500.0,0.00018477,2]
[350229272,1737715840832,-500.0,0.00018477,2]
[350229273,1737715840841,-500.0,0.00018477,2]
[350229274,1737715840850,-502.72119926,0.00018477,2]
[350229275,1737715840859,-501.0929215,0.00018477,2]
[350229276,1737715840868,-500.0,0.00018477,2]
[350229277,1737715840878,-500.0,0.00018477,2]
[350229278,1737715840887,-500.0,0.00018477,2]
[350229279,1737715840897,-573.51,0.00018477,2]
[350229280,1737715840906,-500.0,0.00018477,2]
[350229281,1737715840916,-812.55,0.00018477,2]
[350229282,1737715840929,-500.0,0.00018477,2]
[350229283,1737715840938,-1338.86,0.00018477,2]
[350229284,1737715840947,-500.0,0.00018477,2]
[350229285,1737715840956,-500.0,0.00018477,2]
[350229286,1737715840966,-500.0,0.00018477,2]
[350229287,1737715840977,-500.0,0.00018477,2]
[350229288,1737715840986,-500.0,0.00018477,2]
[350229289,1737715840996,-500.0,0.00018477,2]
[350229290,1737715841007,-500.0,0.00018477,2]
[350229291,1737715841018,-500.0,0.00018477,2]
[350229292,1737715841028,-500.0,0.00018477,2]
[350229293,1737715841038,-859.76,0.00018477,2]
[350229294,1737715841047,-500.0,0.00018477,2]
[350229295,1737715841056,-1923.34,0.00018477,2]
[350229296,1737715841066,-1110.91,0.00018477,2]
[350229297,1737715841076,-500.0,0.00018477,2]
[350229298,1737715841087,-500.0,0.00018477,2]
[350229299,1737715841096,-3797.4,0.00018477,2]
[350229300,1737715841107,-2869.34,0.00018477,2]
[350229301,1737715841118,-500.0,0.00018477,2]
[350229302,1737715841127,-1149.47,0.00018477,2]
[350229303,1737715841136,-500.0,0.00018477,2]
[350229304,1737715841147,-500.0,0.00018477,2]
[350229305,1737715841158,-500.0,0.00018477,2]
[350229306,1737715841168,-500.0,0.00018477,2]
[350229307,1737715841177,-500.0,0.00018477,2]
[350229308,1737715841186,-500.0,0.00018477,2]
[350229309,1737715841196,-500.0,0.00018477,2]
[350229310,1737715841205,-500.0,0.00018477,2]
[350229311,1737715841215,-770.4,0.00018477,2]
[350229312,1737715841225,-500.0,0.00018477,2]
[350229313,1737715841235,-1224.57,0.00018477,2]
[350229314,1737715841247,-500.0,0.00018477,2]
[350229315,1737715841256,-660.13,0.00018477,2]
[350229316,1737715841265,-652.27,0.00018477,2]
[350229317,1737715841275,-4459.1,0.00018477,2]
[350229318,1737715841287,-500.0,0.00018477,2]
[350229319,1737715841298,-71.46919098,0.00018477,2]
[350229320,1737715841316,-549.73316218,0.00018477,2]
[350229321,1737715841345,-858.73764684,0.00018477,2]
[350229322,1737715841354,-500.0,0.00018477,2]
[350229323,1737715841363,-500.0,0.00018477,2]
[350229324,1737715841373,-500.0,0.00018477,2]
[350229325,1737715841382,-184.86190612,0.00018477,2]
[350229326,1737715841391,-1668.00044704,0.00018477,2]
[350229332,1737715843038,-358.0424995,0.00018477,2]
[350229333,1737715843049,-960.95705346,0.00018477,2]
[350229334,1737715843058,-687.36,0.00018477,2]
[350229335,1737715843067,-944.14,0.00018477,2]
[350229336,1737715843078,-500.0,0.00018477,2]
[350229337,1737715843087,-500.0,0.00018477,2]
[350229338,1737715843096,-500.0,0.00018477,2]
[350229339,1737715843105,-533.72,0.00018477,2]
[350229340,1737715843114,-500.0,0.00018477,2]
[350229341,1737715843123,-500.0,0.00018477,2]
[350229342,1737715843132,-288.60667951,0.00018477,2]
[350229343,1737715843222,-500.0,0.00018476,2]
[350229344,1737715843231,-211.39332049,0.00018477,2]
[350229345,1737715843240,-1233.61,0.00018477,2]
[350229346,1737715843249,-508.40759636,0.00018477,2]
[350229347,1737715843258,-1486.64,0.00018477,2]
[350229348,1737715843267,-350.60550491,0.00018477,2]
[350229378,1737715846014,-1355.24449509,0.00018477,2]
[350229379,1737715846023,-479.4076534,0.00018477,2]
[350229380,1737715846052,-20.5923466,0.00018477,2]
[350229381,1737715846061,-500.0,0.00018477,2]
[350229382,1737715846071,-500.0,0.00018477,2]
[350229383,1737715846080,-528.9340158,0.00018477,2]
[350229384,1737715846089,-500.0,0.00018477,2]
[350229385,1737715846098,-1041.08,0.00018477,2]
[350229386,1737715846108,-500.0,0.00018477,2]
[350229387,1737715846118,-500.0,0.00018477,2]
[350229388,1737715846127,-843.12,0.00018477,2]
[350229389,1737715846136,-500.0,0.00018477,2]
[350229390,1737715846147,-500.0,0.00018477,2]
[350229391,1737715846156,-2468.23,0.00018477,2]
[350229392,1737715846166,-500.0,0.00018477,2]
[350229393,1737715846176,-500.0,0.00018477,2]
[350229394,1737715846185,-500.0,0.00018477,2]
[350229395,1737715846194,-942.63,0.00018477,2]
[350229396,1737715846203,-500.0,0.00018477,2]
[350229397,1737715846213,-500.0,0.00018477,2]
[350229398,1737715846223,-2804.32,0.00018477,2]
[350229399,1737715846234,-436.21337758,0.00018477,2]
[350229400,1737715846244,-500.0,0.00018477,2]
[350229401,1737715846255,-1924.64,0.00018477,2]
[350229402,1737715846265,-500.0,0.00018477,2]
[350229403,1737715846274,-500.0,0.00018477,2]
[350229404,1737715846283,-500.0,0.00018477,2]
[350229405,1737715846292,-500.0,0.00018477,2]
[350229406,1737715846301,-812.25,0.00018477,2]
[350229407,1737715846310,-500.0,0.00018477,2]
[350229408,1737715846320,-500.0,0.00018477,2]
[350229409,1737715846331,-500.0,0.00018477,2]
[350229410,1737715846340,-3143.71,0.00018477,2]
[350229411,1737715846351,-2458.16,0.00018477,2]
[350229412,1737715846360,-1809.5,0.00018477,2]
[350229413,1737715846369,-515.66015387,0.00018477,2]
[350229414,1737715846378,-1046.34,0.00018477,2]
[350229415,1737715846388,-240.98477002,0.00018477,2]
[350229416,1737715846398,-500.0,0.00018477,2]
[350229417,1737715846408,-500.0,0.00018477,2]
[350229418,1737715846417,-500.0,0.00018477,2]
[350229419,1737715846426,-500.0,0.00018477,2]
[350229420,1737715846435,-500.0,0.00018477,2]
[350229421,1737715846444,-500.0,0.00018477,2]
[350229422,1737715846454,-500.0,0.00018477,2]
[350229423,1737715846464,-2593.17,0.00018477,2]
[350229425,1737715846609,-3851.42,0.00018477,2]
[350229426,1737715846620,-500.0,0.00018477,2]
[350229427,1737715846640,-500.0,0.00018477,2]
[350229428,1737715846660,-500.0,0.00018477,2]
[350229429,1737715846669,-500.0,0.00018477,2]
[350229430,1737715846680,-500.0,0.00018477,2]
[350229431,1737715846689,-575.97,0.00018477,2]
[350229432,1737715846698,-500.0,0.00018477,2]
[350229433,1737715846708,-502.0285741,0.00018477,2]
[350229434,1737715846717,-1347.64,0.00018477,2]
[350229435,1737715846726,-500.0,0.00018477,2]
[350229436,1737715846735,-500.0,0.00018477,2]
[350229437,1737715846745,-1156.46,0.00018477,2]
[350229438,1737715846754,-165.58222399,0.00018477,2]
[350229439,1737715846763,-500.0,0.00018477,2]
[350229440,1737715846772,-1308.91,0.00018477,2]
[350229441,1737715846782,-588.8190816,0.00018477,2]
[350229442,1737715846791,-500.0,0.00018477,2]
[350229443,1737715846800,-4684.73,0.00018477,2]
[350229444,1737715846809,-839.71,0.00018477,2]
[350229445,1737715846819,-578.99,0.00018477,2]
[350229446,1737715846829,-500.0,0.00018477,2]
[350229447,1737715846839,-500.0,0.00018477,2]
[350229448,1737715846849,-505.98616012,0.00018477,2]
[350229449,1737715846858,-863.03,0.00018477,2]
[350229450,1737715846868,-500.0,0.00018477,2]
[350229451,1737715846877,-500.0,0.00018477,2]
[350229452,1737715846886,-556.74,0.00018477,2]
[350229453,1737715846895,-500.0,0.00018477,2]
[350229454,1737715846905,-500.0,0.00018477,2]
[350229455,1737715846914,-500.0,0.00018477,2]
[350229456,1737715846926,-500.0,0.00018477,2]
[350229457,1737715846935,-1130.89,0.00018477,2]
[350229458,1737715846945,-500.0,0.00018477,2]
[350229459,1737715846954,-500.0,0.00018477,2]
[350229460,1737715846964,-500.0,0.00018477,2]
[350229461,1737715846974,-500.0,0.00018477,2]
[350229462,1737715846983,-249.663562,0.00018477,2]
[350229463,1737715846993,-500.0,0.00018477,2]
[350229464,1737715847004,-500.0,0.00018477,2]
[350229465,1737715847013,-500.0,0.00018477,2]
[350229466,1737715847022,-3500.22,0.00018477,2]
[350229467,1737715847031,-500.0,0.00018477,2]
[350229468,1737715847040,-500.0,0.00018477,2]
[350229469,1737715847049,-500.0,0.00018477,2]
[350229470,1737715847058,-506.66974336,0.00018477,2]
[350229471,1737715847067,-500.0,0.00018477,2]
[350229472,1737715847076,-500.0,0.00018477,2]
[350229473,1737715847086,-500.0,0.00018477,2]